Cogmind - Beta 16.1 @@@ ROGUE MODE // 2026.03.30 @ 16:52:45 Player: Gatamar Result: Destroyed by UC-JHS(R) with Subdweller Machine Gun Performance ------------- Evolutions (0) 0 Regions Visited (2) 400 Robots Destroyed (26) 130 Value Destroyed (380) 380 Prototype IDs (0) 0 Alien Tech Used (0) 0 Bonus (-57) -57 TOTAL SCORE: 853 Bonus ------- Friendly Fire -57 Cogmind --------- Core Integrity 0/250 Matter 226/300 Energy 100/100 System Corruption 0% Temperature Cool (0) Movement Treading (240) Ox1 Location -10/Subcaves Parts ------- > --- POWER (1) -------- (None) > --- PROPULSION (2) --- Light Treads > --- UTILITY (2) ------ Large Storage Unit > --- WEAPON (2) ------- Mini Grenade Launcher Flail > --- INVENTORY (15) --- Ion Engine Aluminum Leg Aluminum Leg Medium Storage Unit Medium Matter Pod (100) Targeting Computer Makeshift Hacking Suite Assault Rifle Light Assault Rifle Mini Grenade Launcher Flamer Peak State ------------ > --- POWER ------------ Ion Engine > --- PROPULSION ------- Light Treads Light Treads > --- UTILITY ---------- Large Storage Unit Improved Terrain Scanner > --- WEAPON ----------- Assault Rifle Flail > --- INVENTORY -------- Ion Engine Aluminum Leg Aluminum Leg Medium Storage Unit Medium Matter Pod Targeting Computer Light Assault Rifle Light Cannon Mini Grenade Launcher Mini Grenade Launcher [Rating: 11] Favorites ----------- Power Ion Engine Engine Ion Engine Propulsion Light Treads Treads Light Treads Utility Large Storage Unit Device Improved Terrain Scanner Storage Large Storage Unit Protection Light Armor Plating Weapon Assault Rifle Ballistic Gun Assault Rifle Ballistic Cannon Light Cannon Launcher Mini Grenade Launcher Impact Weapon Flail Build | -11 -10 -10 ------- Run | Yrd Mat Sub Slots Evolved . | . . . Power . | . . . Propulsion . | . . . Utility . | . . . Weapon . | . . . Parts Attached 14 | 6 4 4 Power 1 | 1 . . Engine 1 | 1 . . Core . | . . . Reactor . | . . . Propulsion 2 | 2 . . Treads 2 | 2 . . Leg . | . . . Wheel . | . . . Hover . | . . . Flight . | . . . Utility 5 | 1 3 1 Device 1 | . . 1 Storage 3 | 1 2 . Processor . | . . . Hackware . | . . . Protection 1 | . 1 . Artifact . | . . . Weapon 6 | 2 1 3 Energy Gun . | . . . Energy Cannon . | . . . Ballistic Gun 2 | 2 . . Ballistic Cannon 1 | . 1 . Launcher 2 | . . 2 Special Weapon . | . . . Impact Weapon 1 | . . 1 Slashing Weapon . | . . . Piercing Weapon . | . . . Special Melee Weapon . | . . . Unidentified Prototypes . | . . . Parts Lost 5 | . . 5 Power 1 | . . 1 Propulsion 1 | . . 1 Utility 2 | . . 2 Weapon 1 | . . 1 Highest Loss Streak 2 | . . 2 To Critical Strikes . | . . . Average Backups 8 | 1 7 10 Power . | . 1 1 Propulsion 1 | 1 2 2 Utility 3 | . 2 3 Weapon 2 | . 1 4 Tool/Special . | . . . Unused Backups 7 | . . 7 Power 1 | . . 1 Propulsion 2 | . . 2 Utility 3 | . . 3 Weapon 1 | . . 1 Tool/Special . | . . . Average Slot Usage (%) 93 | . 97 88 Engine 12 | . 14 9 Treads 28 | . 28 28 Device 1 | . . 4 Storage 14 | . 14 14 Protection 7 | . 10 2 Ballistic Gun 12 | . 17 4 Ballistic Cannon 9 | . 10 8 Launcher 2 | . . 5 Impact Weapon 3 | . . 9 Peak Build Rating 11 | 6 8 11 Average Rating 7 | 4 7 8 On Entrance 4 | . 6 8 Avg Prop Armor Cover (%) . | . . . Naked Turns . | . . . Heaviest Build 33 | 13 33 33 Greatest Support 40 | 40 40 40 Greatest Overweight (x) . | . . . Average Overweight (x) . | . . . Largest Inventory Capacity 15 | 8 15 15 Average Capacity 13 | 6 12 15 Most Carried 12 | 3 11 12 Average Carried 8 | 1 7 10 Final Capacity 15 | 8 15 15 Final Carried 11 | 3 11 11 Class Distribution -------------------- 100% | Mutant Dominant Class ---------------- Mutant | -10/Materials Mutant | -10/Subcaves Resources | -11 -10 -10 ----------- Run | Yrd Mat Sub Matter Collected 837 | 175 488 174 Remotely . | . . . Salvage Created 692 | . 507 185 Parts 38 | . 23 15 Haulers Intercepted . | . . . Recyclers Shooed 3 | . 3 . Parts Field Recycled . | . . . Retrieved Matter . | . . . Parts Self-Destructed 6 | . . 6 Prevented . | . . . Parts Restored . | . . . Kills | -11 -10 -10 ------- Run | Yrd Mat Sub Combat Hostiles Destroyed 15 | . 4 11 Melee 3 | . . 3 Guns 2 | . 1 1 Cannons 5 | . 3 2 AOE 4 | . . 4 Classes Destroyed 9 | . 6 3 Worker 3 | . 3 . Builder 2 | . 2 . Tunneler 2 | . 2 . Recycler 4 | . 4 . Swarmer 9 | . 3 6 Grunt 1 | . 1 . Sentry 1 | . . 1 Subdweller 4 | . . 4 Scientist 1 | . . 1 Best Kill Streak 3 | . 3 3 Combat Bots Only 3 | . 3 3 Max Kills in Single Turn 2 | . 1 2 Gunslinging . | . . . Exploded 2 | . . 2 Melee 1 | . . 1 Uniques/NPCs Destroyed . | . . . Combat | -11 -10 -10 -------- Run | Yrd Mat Sub Hostile Shots Fired 81 | . 15 66 Missed 26 | . 1 25 Hits 55 | . 14 41 Projectile 55 | . 14 41 Critical Strikes 1 | . . 1 Damage Taken 935 | . 120 815 Core 270 | . 36 234 Absorbed by Shields . | . . . Core Remaining (%) 100 | 100 . . Volleys Fired 68 | . 40 28 Largest 2 | . 2 2 Hottest 50 | . 50 50 Shots Fired 120 | . 80 40 Gun 55 | . 43 12 Cannon 55 | . 37 18 Launcher 10 | . . 10 Special . | . . . Kinetic 110 | . 80 30 Thermal . | . . . Explosive 10 | . . 10 Electromagnetic . | . . . Robot Hit Streak 19 | . 9 19 Robot Miss Streak 6 | . 2 6 Penetration Max . | . . . Secondary Targets . | . . . Shots Hit Robots 87 | . 50 37 Core Hits 34 | . 19 15 Critical Kills 1 | . . 1 Critical Parts Destroyed . | . . . Critical Strikes 3 | . . 3 Blast 1 | . . 1 Smash 2 | . . 2 Melee Attacks 19 | . . 19 Impact 19 | . . 19 Slashing . | . . . Piercing . | . . . Sneak Attacks . | . . . Combat Hostiles . | . . . Follow-up Attacks . | . . . Damage Inflicted 1992 | . 771 1221 Guns 444 | . 339 105 Cannons 715 | . 403 312 Explosions 441 | . . 441 Melee 363 | . . 363 Ramming 29 | . 29 . Kinetic 1159 | . 742 417 Thermal . | . . . Explosive 441 | . . 441 Electromagnetic . | . . . Impact 363 | . . 363 Slashing . | . . . Piercing . | . . . Highest Corruption . | . . . Average Corruption . | . . . Corruption Purged . | . . . Corruption Blocked . | . . . Overload Shots . | . . . Overflow Damage 31 | . 8 23 Projectiles 8 | . 8 . Explosions 16 | . . 16 Melee 7 | . . 7 Knockbacks 10 | . 5 5 Impact 1 | . . 1 Kinetic 9 | . 5 4 Secondary . | . . . Self-Inflicted Damage 44 | . . 44 Shots 1 | . . 1 Rammed 7 | . 7 . Targets Rammed 8 | . 8 . Kicked . | . . . Crushed 1 | . 1 . Highest Temperature 6 | . 6 . Average Temperature 3 | . 3 . Received Heat Transfer 78 | . 12 66 Siege Activations . | . . . Martial Activations . | . . . Shielding Activations . | . . . Robots Disrupted . | . . . Combat Hostiles . | . . . Robots Corrupted 1 | . . 1 Combat Hostiles 1 | . . 1 Parts Fried . | . . . Impact Corruptions 2 | . . 2 Robots Melted . | . . . Combat Hostiles . | . . . Parts Melted . | . . . Heat Transferred . | . . . Parts Sabotaged . | . . . Parts Stolen . | . . . Parts Stripped . | . . . Power Chain Reactions . | . . . Alert | -11 -10 -10 ------- Run | Yrd Mat Sub Maximum Alert Level . | . . . Low Security (%) 100 | 100 100 . Level 1 . | . . . Level 2 . | . . . Level 3 . | . . . Level 4 . | . . . Level 5 . | . . . High Security . | . . . Max Security . | . . . Peak Influence 109 | . 109 . Initial . | . . . Average 22 | . 24 . Influence Increases 362 | . 202 160 Destroy 0b10 Robot/C 220 | . 80 140 Destroy 0b10 Robot/NC 55 | . 55 . Destroy Leader 40 | . 20 20 Destroy Structure 2 | . 2 . Lose Combat Pursuer 45 | . 45 . Influence Decreases 362 | . 175 187 Entered New Map 14 | . . 14 Time Decay 328 | . 175 153 Lost Part 20 | . . 20 Squads Dispatched 2 | . 2 . Investigation 2 | . 2 . Extermination . | . . . Reinforcement . | . . . Assault . | . . . Garrison . | . . . Intercept . | . . . Searches Triggered . | . . . Construction Impeded . | . . . Haulers Reinforced . | . . . Active Scanning Responses . | . . . Cargo Convoy Interrupts . | . . . Stealth | -11 -10 -10 --------- Run | Yrd Mat Sub Distress Signals 2 | . 2 . Communications Jammed . | . . . Distress Signals . | . . . Times Spotted 19 | . 6 13 Peak Tracking Total 3 | . 3 3 Tactical Retreats 2 | . 1 1 Traps | -11 -10 -10 ------- Run | Yrd Mat Sub Traps Triggered 3 | . 1 2 Indirectly . | . . . Trap Hack Attempts . | . . . Triggered . | . . . Disarmed . | . . . Reprogrammed . | . . . Reused . | . . . Traps Extracted . | . . . Installed . | . . . Triggered . | . . . Machines | -11 -10 -10 ---------- Run | Yrd Mat Sub Machines Disabled . | . . . Max in Single Turn . | . . . Machines Repaired . | . . . Machines Dismantled . | . . . Machines Sabotaged . | . . . Overloaded Fab Kills . | . . . Hacking | -11 -10 -10 --------- Run | Yrd Mat Sub Machines Accessed 3 | . 3 . Terminals 1 | . 1 . Fabricators . | . . . Repair Stations . | . . . Recycling Units 2 | . 2 . Scanalyzers . | . . . Garrison Access . | . . . Total Hacks 6 | . 6 . Successful 3 | . 3 . Failed 3 | . 3 . Catastrophic . | . . . Database Lockouts . | . . . Manual . | . . . Terminals 3 | . 3 . Fabricators . | . . . Repair Stations . | . . . Recycling Units 3 | . 3 . Scanalyzers . | . . . Garrison Access . | . . . Terminal Hacks 1 | . 1 . Emergency Access Points 1 | . 1 . Fabricator Hacks . | . . . Repair Station Hacks . | . . . Recycling Unit Hacks 2 | . 2 . Report Inventory 2 | . 2 . Scanalyzer . | . . . Garrison Access Hacks . | . . . Unauthorized Hacks . | . . . Terminals . | . . . Fabricators . | . . . Repair Stations . | . . . Recycling Units . | . . . Scanalyzers . | . . . Garrison Access . | . . . Data Cores Recovered . | . . . Used . | . . . Hacking Detections 2 | . 2 . Full Trace Events . | . . . Feedback Events . | . . . Feedback Blocked . | . . . Robot Schematics Acquired . | . . . Robots Built . | . . . Authchips . | . . . Time . | . . . Total Robot Build Rating . | . . . Part Schematics Acquired . | . . . Parts Built . | . . . Authchips . | . . . Time . | . . . Total Part Build Rating . | . . . Part Studies Acquired . | . . . Parts Repaired . | . . . Time . | . . . Parts Recycled . | . . . Recycled Matter . | . . . Retrieved Matter . | . . . Retrieved Components . | . . . Parts Scanalyzed . | . . . Part Schematics Acquired . | . . . Parts Damaged . | . . . Bothacking | -11 -10 -10 ------------ Run | Yrd Mat Sub Used RIF Installer . | . . . Robots Hacked . | . . . Non-combat . | . . . Combat . | . . . Robot Hacks Applied . | . . . Relay Couplers Released . | . . . Fabnet Peak Effective % . | . . . Robots Rewired . | . . . Allies Hacked . | . . . Hacks Repelled . | . . . Allies | -11 -10 -10 -------- Run | Yrd Mat Sub Total Allies . | . . . Largest Group . | . . . Highest-Rated Group . | . . . Highest-Rated Ally . | . . . Total Orders . | . . . Ally Attacks . | . . . Total Damage . | . . . Kills . | . . . Allies Corrupted . | . . . Allies Melted . | . . . Intel | -11 -10 -10 ------- Run | Yrd Mat Sub Active Infowar (turns) 268 | . . 268 Terrain 268 | . . 268 Robot Analysis Total . | . . . Derelict Logs Recovered . | . . . Drone Launches . | . . . Drone Recoveries . | . . . Exploration | -11 -10 -10 ------------- Run | Yrd Mat Sub Turns Passed 2238 | 89 1266 883 Spaces Moved 1168 | 53 651 464 Core 6 | 6 . . Treads 1162 | 47 651 464 Legs . | . . . Wheels . | . . . Hover . | . . . Flight . | . . . Fastest Speed 50 | 50 160 160 Average Speed 159 | 147 160 160 Slowest Speed 160 | 160 160 160 Overloaded Moves . | . . . Propulsion Burnouts . | . . . Robots Hopped . | . . . Potential Cave-ins . | . . . Cave-ins Triggered . | . . . Exploration Rate (%) 36 | 4 65 40 Regions Visited 2 Branch Regions 1 Pre-discovered Areas . | . . . Known Exits Taken . | . . . Unknown Exits Taken 2 | 1 1 . Scrap Searched 2 | . . 2 Spaces Dug 1 | . . 1 Terrain Destroyed 60 | . . 60 Melee 1 | . . 1 Projectile . | . . . AOE 59 | . . 59 Terrain Rammed . | . . . Walls Destroyed . | . . . Machines Disabled . | . . . Actions | -11 -10 -10 --------- Run | Yrd Mat Sub Total 1380 | 61 790 529 Wait 89 | . 79 10 Move 1166 | 52 650 464 Hop . | . . . Pick Up 13 | 3 8 2 Fast Attach 7 | 6 1 . Attach 2 | . . 2 Detach . | . . . Swap 7 | . 3 4 Drop 1 | . 1 . Fire 68 | . 40 28 Melee 19 | . . 19 Ram . | . . . Kick . | . . . Crush 8 | . 8 . Escape Stasis . | . . . Rewire . | . . . Trap . | . . . Miscellaneous . | . . . Route ------- -11/Scrapyard -10/Materials (discovered 4 exits: [*Mat x2] / [*Min] / [*Sub]) -10/Subcaves (discovered 2 exits: [*Mat x2]) History --------- Turn | Location | Event 8 | -11/Scrapyard | Discovered new exit (range 15) 90 | -11/Scrapyard | Entered Materials 217 | -10/Materials | Discovered new exit (range 6) 316 | -10/Materials | Build established: Mutant 453 | -10/Materials | Discovered new exit (range 13) 544 | -10/Materials | Discovered new exit (range 6) 1163 | -10/Materials | Discovered new exit (range 16) 1356 | -10/Materials | Entered Subcaves 1357 | -10/Subcaves | Approached by a straggling Scientist 1577 | -10/Subcaves | Shifting Twisted Machinery released Flamer 1585 | -10/Subcaves | Shifting Twisted Machinery released Sub. Machine Gun 1760 | -10/Subcaves | Discovered new exit (range 6) 1798 | -10/Subcaves | Core integrity fell below 50% 1883 | -10/Subcaves | Discovered new exit (range 5) 1943 | -10/Subcaves | Core integrity fell below 20% 2239 | -10/Subcaves | Destroyed by UC-JHS(R) with Subdweller Machine Gun Last Messages --------------- 01821_ Searching scrap... 01821_ Found Piercing Trap. 01821_ Found 34 Matter. 01831_ Searching scrap... 01831_ Found Mak. Hacking Suite. 01831_ Found Flamer. 01831_ Found 34 Matter. 01834_ Acquired Mak. Hacking Suite. 01838_ Acquired Flamer. 01883_ EXIT=FOUND 01939_ 6J-B8X(R) knocked back. 01957_ 51-91D(R) knocked back. 01959_ Lgt. Cannon destroyed. 01960_ Ion Engine destroyed. 01962_ 6J-B8X(R) destroyed. 01962_ 51-91D(R) destroyed. 01968_ Acquired 7 matter. 01970_ Acquired 1 matter. 01973_ Acquired 7 matter. 02237_ Lgt. Treads destroyed. Map ----- +----------------------------------------------------+ | ?????????????????????????????????????????????????? | | ?????????????????????????????????????????????????? | | ?????????????????????????????????????????????????? | | ?????????????????????????????????????????????????? | | ?????????????????????????????????????????????????? | | ?????????????????????????????????????????????????? | | ?????????????????????????????????????????????????? | | ?????????????????????????????????????????????????? | | ?????????????????????????????????????????????????? | | ?????????????????????????????????????????????????? | | ?????????????????????????????????????????????????? | | ?????????????????????????????????????????????????? | | ?????????????????????????????????????????????????? | | ?????????????????????? ??#???????????????????????? | | ?????????????????????? " ???????????????????????? | | ??????????????????????""" ???????????????????????? | | ??????????????????????" " ???????????????????????? | | ??????????????????????# R #??????????????????????? | | ?????????????????????## ??????????????????????? | | ?????????????????????# #??????????????????????? | | ?????????????????????? #??????????????????????? | | ??????????????????????# ##?????????????????????? | | ???????????????? ?????# ##????????????????????? | | ????????????? ????# #????????????????????? | | ????????????? ????## #????????????????????? | | ?????????????? ????##@ ##????????????????????? | | ??????????????? ????# ##????????????????????? | | ????????????????# ???## #?##?????????????????? | | ?????????????????# ???## ### #?????????????????? | | ?????????????????# ??# ## #????????###??????? | | ??????????????????# #?# # #????????# ##?????? | | ?###???????????????# ## #????????## #?????? | | ## #??????????????# #???????## #?????? | | ? ##?????????????### #### #???# #?????? | | ?? #??????????????## ##??? #???# #?????? | | ??# #?????????????## #????? ??## #?????? | | ??# #?????????????# ####??? #?# #?????? | | ??# ##????????????# ### ###### #?????? | | ?## #######?????## #??## ##?????? | | ## ## ##????# ##??# #??????? | | # #????# ##???# #??????? | | ## ##????# ## ####????# #??????? | | ### ##?????## #? ######???# #??????? | | #?# #???????# #? #### ##### ##??????? | | #?# ##??????# #####?# ## ##???????? | | ##?# ##?????## ##??# #????????? | | #??## ##?????# #### ####????????? | | # #???## ###??## ## ##???????????? | | # #???## #### #????????????? | | ## #???# ## ## #????????????? | +----------------------------------------------------+ Best States ------------- Heat Dissipation 25 Energy Generation 10 Energy Capacity 250 Matter Stores 300 Matter Capacity 300 Sight Range 16 Terrain Scan Range 16 Terrain Scan Density 10 Armor Coverage 150 Evasion (%) 40 Recoil Reduction 2 Item Schematics ----------------- None Robot Schematics ------------------ None Fabricated ------------ Nothing Repaired ---------- Nothing Studied --------- None Alien Tech Used ----------------- None Achievements -------------- None Challenges ------------ None Game ------ Seed GravitonEncryptedNukerbomber Manual? 0 Play Time 00:11:40 Cumulative 29.0 hours Start 2026.03.30 @ 16:40:22 End 2026.03.30 @ 16:52:45 Sessions 1 Manual Loads 0 Difficulty Rogue Special Mode None Game No. 73 Rogue 73 Adventurer 0 Explorer 0 Win Type - Total 0 Types 0/0/0/0/0/0/0/0/0/0 Lore% 26 Gallery% 27 Achievement% 21 Wizard Run 0 Options --------- Layout 2 ASCII 0 Keyboard 0 Movement Numpad Keybinds 0 Fullscreen 1 Font 32/SmallcapsGlow Map View 50x44 Zoom Use 0% Tactical HUD 1 Map Filters NONE Filters NONE Steam 1 RUN: fcc85b33-4985-4790-bae1-d2204d9ce905